bitfinex-derivatives/quotes_BNBF0:USTF0_20250529
["timestamp","ask_amount","ask_price","bid_price","bid_amount"]
[1748507924398,0.29057097,688.3,686.49,0.71291486]
[1748507925099,0.29057097,688.3,686.49,0.25307158]
[1748507925403,0.29057097,688.3,686.5,0.443]
[1748507928002,0.29057097,688.3,686.51,0.45984328]
[1748507928201,0.29057097,688.3,686.5,0.90284328]
[1748507928400,0.29057097,688.3,686.5,0.443]
[1748507946113,0.29057097,688.3,686.52,0.45984328]
[1748507946714,0.29057097,688.3,686.5,0.443]
[1748507948122,0.29057097,688.3,686.5,0.90284328]
[1748507948323,0.29057097,688.3,686.54,0.45984328]
[1748507948522,0.29057097,688.3,686.55,0.45984328]
[1748507949223,0.29057097,688.3,686.57,0.45984328]
[1748507949823,0.29057097,688.3,686.5,0.443]
[1748507950019,0.29057097,688.3,686.51,0.2913286]
[1748507955622,0.29057097,688.3,686.74,0.45984328]
[1748507955825,0.29057097,688.3,686.51,0.2913286]
[1748507955826,0.29057097,688.3,686.98,0.45984328]
[1748507956829,0.29057097,688.3,686.99,0.45984328]
[1748507957323,0.29057097,688.3,686.98,0.45984328]
[1748507957530,0.29057097,688.3,686.97,0.45984328]
[1748507958329,0.29057097,688.3,686.96,0.45984328]
[1748507958630,0.29057097,688.3,686.95,0.45984328]
[1748507959124,0.29057097,688.3,686.51,0.75117188]
[1748507959125,0.29057097,688.3,686.92,0.45984328]
[1748507959524,0.29057097,688.3,686.91,0.45984328]
[1748507959929,0.29057097,688.3,686.9,0.45984328]
[1748507960524,0.29057097,688.3,686.89,0.45984328]
[1748507960829,0.29057097,688.3,686.9,0.45984328]
[1748507961530,0.29057097,688.3,686.89,0.45984328]
[1748507962427,0.29057097,688.3,686.81,0.45984328]
[1748507963330,0.29057097,688.3,686.77,0.45984328]
[1748507963529,0.29057097,688.3,686.76,0.45984328]
[1748507964732,0.29057097,688.3,686.72,0.45984328]
[1748507965530,0.29057097,688.3,686.76,0.45984328]
[1748507966230,0.29057097,688.3,686.77,0.45984328]
[1748507966626,0.29057097,688.3,686.76,0.45984328]
[1748507967031,0.29057097,688.3,686.77,0.45984328]
[1748507967226,0.29057097,688.3,686.74,0.45984328]
[1748507967428,0.29057097,688.3,686.73,0.45984328]
[1748507969029,0.29057097,688.3,686.75,0.45984328]
[1748507969633,0.29057097,688.3,686.7,0.45984328]
[1748507970037,0.29057097,688.3,686.71,0.412]
[1748507970335,0.29057097,688.3,686.71,0.87184328]
[1748507970535,0.29057097,688.3,686.71,0.412]
[1748507972337,0.29057097,688.3,686.72,0.45984328]
[1748507972836,0.29057097,688.3,686.71,0.87184328]
[1748507973037,0.29057097,688.3,686.75,0.45984328]
[1748507973640,0.29057097,688.3,686.76,0.45984328]
[1748507974241,0.29057097,688.3,686.79,0.45984328]
[1748507974642,0.29057097,688.3,686.83,0.45984328]
[1748507975742,0.29057097,688.3,686.84,0.45984328]
[1748507976041,0.29057097,688.3,686.83,0.45984328]
[1748507976841,0.29057097,688.3,686.8,0.45984328]
[1748507977045,0.29057097,688.3,686.71,0.412]
[1748507977046,0.29057097,688.3,686.86,0.45984328]
[1748507977946,0.29057097,688.3,686.88,0.45984328]
[1748507978546,0.29057097,688.3,686.89,0.45984328]
[1748507979246,0.29057097,688.3,686.88,0.45984328]
[1748507979440,0.29057097,688.3,686.94,0.45984328]
[1748507979645,0.29057097,688.3,686.95,0.45984328]
[1748507979948,0.29057097,688.3,686.9,0.45984328]
[1748507980346,0.29057097,688.3,686.96,0.45984328]
[1748507980546,0.29057097,688.3,686.97,0.45984328]
[1748507980944,0.29057097,688.3,686.94,0.45984328]
[1748507981645,0.29057097,688.3,686.95,0.45984328]
[1748507981842,0.29057097,688.3,686.96,0.45984328]
[1748507982643,0.29057097,688.3,686.97,0.45984328]
[1748507983244,0.29057097,688.3,686.98,0.45984328]
[1748507983644,0.29057097,688.3,687.04,0.45984328]
[1748507983841,0.29057097,688.3,686.71,0.412]
[1748507983842,0.29057097,688.3,687.06,0.45984328]
[1748507984061,0.25307895,688.15,687.05,0.45984328]
[1748507984245,0.29063853,688.14,687.05,0.45984328]
[1748507984543,0.29063853,688.14,687.1,0.45984328]
[1748507985043,0.29063853,688.14,686.71,0.412]
[1748507985044,0.29063853,688.14,687.09,0.45984328]
[1748507985346,0.29063853,688.14,687.1,0.45984328]
[1748507985544,0.29063853,688.14,687.11,0.45984328]
[1748507985949,0.29063853,688.14,686.71,0.412]
[1748507995750,0.29063853,688.14,686.89,0.45984328]
[1748507996652,0.29063853,688.14,686.71,0.412]
[1748507996653,0.29063853,688.14,686.94,0.45984328]
[1748507997357,0.29063853,688.14,686.71,0.412]
[1748507997358,0.29063853,688.14,686.95,0.45984328]
[1748507998063,0.29063853,688.14,686.99,0.45984328]
[1748507998391,0.29063853,688.14,687.08,0.45984328]
[1748507998579,0.29063853,688.14,687.26,0.45984328]
[1748507998761,0.29063853,688.14,687.18,0.45984328]
[1748507999059,0.29063853,688.14,687.15,0.45984328]
[1748507999457,0.29063853,688.14,687.11,0.45984328]
[1748508002057,0.29063853,688.14,687.01,0.45984328]
[1748508002963,0.29063853,688.14,687.02,0.337]
[1748508023976,0.29063853,688.14,687.07,0.45984328]
[1748508024174,0.29063853,688.14,687.11,0.45984328]
[1748508024579,0.29063853,688.14,687.02,0.337]
[1748508036193,0.29063853,688.14,686.58,0.25310103]
[1748508036408,0.29063853,688.14,686.6,0.29129041]
[1748508037992,0.29063853,688.14,686.61,0.422]
[1748508038200,0.29063853,688.14,686.63,0.29127768]
[1748508039000,0.29063853,688.14,686.81,0.45984328]
[1748508039193,0.29063853,688.14,686.82,0.29119711]
[1748508041294,0.29063853,688.14,686.86,0.45984328]
[1748508041494,0.29063853,688.14,686.85,0.45984328]
[1748508042597,0.29063853,688.14,686.84,0.45984328]
[1748508043201,0.29063853,688.14,686.85,0.45984328]
[1748508043805,0.29063853,688.14,686.91,0.45984328]
[1748508044204,0.29063853,688.14,686.9,0.45984328]
[1748508044498,0.29063853,688.14,686.82,0.29119711]
[1748508044499,0.29063853,688.14,687.26,0.45984328]
[1748508045303,0.29063853,688.14,687.3,0.45984328]
[1748508046603,0.29063853,688.14,687.31,0.45984328]
[1748508047105,0.29063853,688.14,687.3,0.45984328]
[1748508047302,0.29063853,688.14,687.31,0.45984328]
[1748508048005,0.29063853,688.14,687.35,0.45984328]
[1748508051499,0.29063853,688.14,687.34,0.45984328]
[1748508051703,0.29063853,688.14,686.82,0.29119711]
[1748508051704,0.29063853,688.14,687.23,0.45984328]
[1748508052708,0.29063853,688.14,687.18,0.45984328]
[1748508053909,0.29063853,688.14,687.19,0.392]
[1748508054110,0.29063853,688.14,687.2,0.45984328]
[1748508054306,0.29063853,688.14,687.19,0.392]
[1748508055005,0.29063853,688.14,687.19,0.85184328]
[1748508055208,0.29063853,688.14,687.2,0.45984328]
[1748508056210,0.29063853,688.14,687.19,0.392]
[1748508083937,0.29063853,688.14,686.82,0.29119711]
[1748508086439,0.29063853,688.14,686.83,0.335]
[1748508088049,0.29063853,688.14,686.92,0.45984328]
[1748508088842,0.29063853,688.14,686.84,0.45984328]
[1748508089042,0.29063853,688.14,686.85,0.45984328]
[1748508089340,0.29063853,688.14,686.84,0.45984328]
[1748508089543,0.29063853,688.14,686.85,0.45984328]
[1748508089949,0.29063853,688.14,686.84,0.45984328]
[1748508090348,0.29063853,688.14,686.88,0.45984328]
[1748508091256,0.29063853,688.14,686.89,0.45984328]
[1748508091451,0.29063853,688.14,686.9,0.45984328]
[1748508091954,0.29063853,688.14,686.94,0.45984328]
[1748508092350,0.29063853,688.14,686.95,0.45984328]
[1748508092754,0.29063853,688.14,686.83,0.335]
[1748508092952,0.29063853,688.14,686.83,0.79484328]
[1748508093155,0.29063853,688.14,686.83,0.335]
[1748508093852,0.29063853,688.14,686.85,0.45984328]
[1748508094052,0.29063853,688.14,686.86,0.45984328]
[1748508094256,0.29063853,688.14,686.94,0.45984328]
[1748508094456,0.29063853,688.14,686.93,0.45984328]
[1748508094657,0.29063853,688.14,686.98,0.45984328]
[1748508095158,0.29063853,688.14,687.0,0.45984328]
[1748508095554,0.29063853,688.14,686.99,0.45984328]
[1748508096959,0.29063853,688.14,687.0,0.45984328]
[1748508097472,0.29063853,688.14,687.02,0.45984328]
[1748508097661,0.29063853,688.14,687.03,0.45984328]
[1748508098060,0.29063853,688.14,687.05,0.45984328]
[1748508098457,0.29063853,688.14,687.33,0.45984328]
[1748508098763,0.29063853,688.14,686.83,0.335]
[1748508098764,0.29063853,688.14,687.34,0.45984328]
[1748508099057,0.29063853,688.14,687.39,0.45984328]
[1748508099659,0.29063853,688.14,686.83,0.335]
[1748508099660,0.29063853,688.14,687.4,0.45984328]
[1748508100165,0.29063853,688.14,687.39,0.45984328]
[1748508100364,0.29063853,688.14,687.4,0.45984328]
[1748508101157,0.29063853,688.14,687.34,0.45984328]
[1748508102759,0.29063853,688.14,687.36,0.45984328]
[1748508102965,0.29063853,688.14,687.18,0.45984328]
[1748508104165,0.29063853,688.14,687.2,0.45984328]
[1748508105462,0.29063853,688.14,687.24,0.45984328]
[1748508105666,0.29063853,688.14,687.23,0.45984328]
[1748508106366,0.29063853,688.14,687.24,0.45984328]
[1748508107362,0.29063853,688.14,687.2,0.45984328]
[1748508107966,0.29063853,688.14,687.23,0.45984328]
[1748508108167,0.29063853,688.14,687.22,0.45984328]
[1748508110062,0.29063853,688.14,687.35,0.45984328]
[1748508113070,0.29063853,688.14,687.26,0.45984328]
[1748508113268,0.29063853,688.14,687.21,0.362]
[1748508153389,0.29063853,688.14,686.82,0.29119711]
[1748508153390,0.29063853,688.14,687.0,0.45984328]
[1748508154689,0.29063853,688.14,686.82,0.29119711]
[1748508154690,0.29063853,688.14,687.06,0.45984328]
[1748508155090,0.29063853,688.14,687.07,0.299]
[1748508155793,0.29063853,688.14,687.1,0.45984328]
[1748508156598,0.29063853,688.14,687.11,0.45984328]
[1748508156793,0.29063853,688.14,687.1,0.45984328]
[1748508157094,0.29063853,688.14,687.08,0.45984328]
[1748508157298,0.29063853,688.14,687.07,0.75884328]
[1748508157695,0.29063853,688.14,687.08,0.45984328]
[1748508158400,0.29063853,688.14,687.07,0.299]
[1748508158698,0.29063853,688.14,687.21,0.45984328]
[1748508159603,0.29063853,688.14,687.18,0.45984328]
[1748508159799,0.29063853,688.14,687.19,0.45984328]
[1748508160699,0.29063853,688.14,687.18,0.45984328]
[1748508161503,0.29063853,688.14,687.17,0.45984328]
[1748508162204,0.29063853,688.14,687.15,0.45984328]
[1748508162500,0.29063853,688.14,687.09,0.45984328]
[1748508162904,0.29063853,688.14,687.07,0.299]
[1748508196243,0.29063853,688.14,686.73,0.45984328]
[1748508196632,0.29063853,688.14,686.82,0.45984328]
[1748508197529,0.29063853,688.14,686.86,0.45984328]
[1748508198035,0.29063853,688.14,686.85,0.45984328]
[1748508198731,0.29063853,688.14,686.88,0.45984328]
[1748508198932,0.25311116,688.05,686.88,0.45984328]
[1748508199130,0.29068077,688.04,686.88,0.45984328]
[1748508199333,0.29068077,688.04,686.89,0.45984328]
[1748508199531,0.29068077,688.04,686.92,0.45984328]
[1748508199732,0.29068077,688.04,686.95,0.45984328]
[1748508200137,0.29068077,688.04,686.86,0.89684328]
[1748508200739,0.29068077,688.04,686.9,0.45984328]
[1748508201642,0.29068077,688.04,686.96,0.45984328]
[1748508202335,0.29068077,688.04,686.97,0.45984328]
[1748508202642,0.29068077,688.04,686.98,0.45984328]
[1748508203038,0.29068077,688.04,686.95,0.45984328]
[1748508204042,0.29068077,688.04,686.86,0.437]
[1748508205041,0.29068077,688.04,686.86,0.89684328]
[1748508205243,0.29068077,688.04,686.87,0.45984328]
[1748508205444,0.29068077,688.04,686.86,0.437]
[1748508205643,0.29068077,688.04,686.87,0.45984328]
[1748508205839,0.29068077,688.04,686.88,0.45984328]
[1748508206049,0.29068077,688.04,686.87,0.45984328]
[1748508206540,0.29068077,688.04,686.86,0.437]
[1748508208541,0.29068077,688.04,686.89,0.45984328]
[1748508209041,0.29068077,688.04,686.9,0.45984328]
[1748508209241,0.29068077,688.04,686.89,0.45984328]
[1748508209443,0.29068077,688.04,687.04,0.45984328]
[1748508209744,0.29068077,688.04,687.01,0.45984328]
[1748508210241,0.29068077,688.04,687.02,0.45984328]
[1748508210444,0.29068077,688.04,686.86,0.437]
[1748508210445,0.29068077,688.04,687.01,0.45984328]
[1748508211747,0.29068077,688.04,686.91,0.45984328]
[1748508212540,0.29068077,688.04,686.86,0.437]
[1748508212541,0.29068077,688.04,686.9,0.45984328]
[1748508213442,0.29068077,688.04,686.86,0.437]
[1748508221248,0.29068077,688.04,686.89,0.45984328]
[1748508221453,0.29068077,688.04,686.9,0.45984328]
[1748508222148,0.29068077,688.04,686.86,0.437]
[1748508230459,0.29068077,688.04,686.87,0.29117591]
[1748508240363,0.29068077,688.04,686.89,0.45984328]
[1748508240564,0.29068077,688.04,686.91,0.45984328]
[1748508241367,0.29068077,688.04,686.87,0.75101919]
[1748508241588,0.29068077,688.04,686.9,0.45984328]
[1748508242269,0.29068077,688.04,686.91,0.417]
[1748508243578,0.29068077,688.04,686.91,0.87684328]
[1748508244073,0.29068077,688.04,686.92,0.45984328]
[1748508244572,0.29068077,688.04,687.02,0.45984328]
[1748508244776,0.29068077,688.04,687.06,0.45984328]
[1748508245476,0.29068077,688.04,687.1,0.45984328]
[1748508245676,0.29068077,688.04,687.09,0.45984328]
[1748508246476,0.29068077,688.04,687.1,0.45984328]
[1748508246781,0.29068077,688.04,687.01,0.45984328]
[1748508246972,0.29068077,688.04,686.91,0.417]
[1748508246973,0.29068077,688.04,687.02,0.45984328]
[1748508247978,0.29068077,688.04,686.91,0.417]
[1748508253482,0.29068077,688.04,686.91,0.87684328]
[1748508254179,0.29068077,688.04,686.91,0.417]
[1748508254684,0.29068077,688.04,686.92,0.45984328]
[1748508255482,0.29068077,688.04,686.94,0.45984328]
[1748508255682,0.29068077,688.04,686.93,0.45984328]
[1748508255882,0.29068077,688.04,686.96,0.45984328]
[1748508256280,0.29068077,688.04,686.99,0.45984328]
[1748508258288,0.29068077,688.04,687.03,0.45984328]
[1748508258886,0.29068077,688.04,687.05,0.45984328]
[1748508259087,0.29068077,688.04,687.1,0.45984328]
[1748508259391,0.29068077,688.04,687.11,0.45984328]
[1748508259589,0.29068077,688.04,687.1,0.45984328]
[1748508259886,0.29068077,688.04,687.12,0.45984328]
[1748508260493,0.29068077,688.04,686.91,0.417]
[1748508261101,0.29068077,688.04,687.19,0.45807101]
[1748508261493,0.29068077,688.04,687.12,0.45807101]
[1748508262395,0.29068077,688.04,687.15,0.45807101]
[1748508262595,0.29068077,688.04,686.91,0.417]
[1748508262596,0.29068077,688.04,687.16,0.45807101]
[1748508263194,0.29068077,688.04,687.17,0.45807101]
[1748508263394,0.29068077,688.04,687.18,0.45807101]
[1748508263793,0.29068077,688.04,687.15,0.45807101]
[1748508263992,0.29068077,688.04,687.14,0.45807101]
[1748508264296,0.29068077,688.04,686.91,0.417]
[1748508265095,0.29068077,688.04,687.07,0.45804752]
[1748508268295,0.29068077,688.04,687.01,0.45804752]
[1748508269295,0.29068077,688.04,687.02,0.45804752]
[1748508271396,0.29068077,688.04,687.06,0.45804752]
[1748508271595,0.29068077,688.04,686.91,0.417]
[1748508271596,0.29068077,688.04,687.01,0.45804752]
[1748508272097,0.29068077,688.04,687.0,0.45804752]
[1748508272500,0.29068077,688.04,687.01,0.45804752]
[1748508273701,0.29068077,688.04,686.92,0.45804752]
[1748508273905,0.29068077,688.04,686.91,0.417]
[1748508282319,0.29068077,688.04,686.15,0.25323364]
[1748508285019,0.29068077,688.04,686.16,0.356]
[1748508308744,0.29068077,688.04,686.16,1.10552472]
[1748508309043,0.29068077,688.04,686.17,0.29147295]
[1748508309238,0.29068077,688.04,686.17,0.74952047]
[1748508309642,0.29068077,688.04,686.17,0.29147295]
[1748508314546,0.29068077,688.04,686.17,0.74952047]
[1748508315447,0.29068077,688.04,686.17,0.29147295]
[1748508317853,0.29068077,688.04,686.31,0.45804752]
[1748508318550,0.29068077,688.04,686.17,0.29147295]
[1748508318551,0.29068077,688.04,686.3,0.45804752]
[1748508319351,0.29068077,688.04,686.24,0.45804752]
[1748508319555,0.29068077,688.04,686.26,0.45804752]
[1748508320158,0.29068077,688.04,686.34,0.45804752]
[1748508320353,0.29068077,688.04,686.35,0.45804752]
[1748508320656,0.29068077,688.04,686.36,0.45804752]
[1748508321952,0.29068077,688.04,686.35,0.45804752]
[1748508322156,0.29068077,688.04,686.36,0.45804752]
[1748508324064,0.29068077,688.04,686.43,0.45804752]
[1748508324465,0.29068077,688.04,686.42,0.45804752]
[1748508324665,0.29068077,688.04,686.44,0.45804752]
[1748508324967,0.29068077,688.04,686.17,0.29147295]
[1748508324968,0.29068077,688.04,686.45,0.45804752]
[1748508325861,0.29068077,688.04,686.41,0.45804752]
[1748508326264,0.29068077,688.04,686.42,0.45804752]
[1748508326663,0.29068077,688.04,686.43,0.45804752]
[1748508326964,0.29068077,688.04,686.44,0.45804752]
[1748508327363,0.29068077,688.04,686.45,0.45804752]
[1748508327762,0.29068077,688.04,686.47,0.45804752]
[1748508328763,0.29068077,688.04,686.48,0.45804752]
[1748508329762,0.29068077,688.04,686.52,0.45804752]
[1748508330267,0.29068077,688.04,686.6,0.45804752]
[1748508330666,0.29068077,688.04,686.62,0.45804752]
[1748508331869,0.29068077,688.04,686.63,0.45804752]
[1748508332069,0.29068077,688.04,686.71,0.45804752]
[1748508332670,0.29068077,688.04,686.72,0.45804752]
[1748508333362,0.29068077,688.04,686.74,0.45804752]
[1748508333768,0.29068077,688.04,686.75,0.45804752]
[1748508333969,0.29068077,688.04,686.72,0.45804752]
[1748508334568,0.29068077,688.04,686.63,0.45804752]
[1748508335670,0.29068077,688.04,686.65,0.45804752]
[1748508335865,0.29068077,688.04,686.69,0.45804752]
[1748508336670,0.29068077,688.04,686.7,0.45804752]
[1748508337370,0.29068077,688.04,686.71,0.45804752]
[1748508337764,0.29068077,688.04,686.72,0.45804752]
[1748508339466,0.29068077,688.04,686.69,0.45804752]
[1748508340266,0.29068077,688.04,686.65,0.45804752]
[1748508340466,0.29068077,688.04,686.64,0.45804752]
[1748508341775,0.29068077,688.04,686.65,0.45804752]
[1748508342669,0.29068077,688.04,686.66,0.45804752]
[1748508342869,0.29068077,688.04,686.69,0.45804752]
[1748508343069,0.29068077,688.04,686.61,0.45804752]
[1748508343375,0.29068077,688.04,686.68,0.45804752]
[1748508343668,0.29068077,688.04,686.69,0.45804752]
[1748508344271,0.29068077,688.04,686.68,0.45804752]
[1748508345775,0.29068077,688.04,686.69,0.45804752]
[1748508346575,0.29068077,688.04,686.68,0.45804752]
[1748508346876,0.29068077,688.04,686.51,0.45804752]
[1748508347387,0.29068077,688.04,686.49,0.373]
[1748508361988,0.29068077,688.04,686.29,0.45804752]
[1748508363085,0.29068077,688.04,686.35,0.45804752]
[1748508363688,0.29068077,688.04,686.47,0.45804752]
[1748508364786,0.29068077,688.04,686.48,0.321]
[1748508365382,0.29068077,688.04,686.55,0.45804752]
[1748508366684,0.29068077,688.04,686.48,0.321]
[1748508377798,0.29068077,688.04,686.37,0.46010144]
[1748508377994,0.29068077,688.04,686.39,0.46010144]
[1748508378199,0.29068077,688.04,686.35,0.46010144]
[1748508378397,0.29068077,688.04,686.17,0.29147295]
[1748508378398,0.29068077,688.04,686.36,0.46010144]
[1748508379198,0.29068077,688.04,686.35,0.46010144]
[1748508379394,0.29068077,688.04,686.37,0.419]
[1748508380702,0.29068077,688.04,686.37,0.87910144]
[1748508381602,0.29068077,688.04,686.58,0.46010144]
[1748508381801,0.29068077,688.04,686.57,0.46010144]
[1748508382001,0.29068077,688.04,686.37,0.419]
[1748508385008,0.29068077,688.04,686.42,0.46010144]
[1748508385508,0.29068077,688.04,686.37,0.419]
[1748508422525,0.29068077,688.04,685.95,0.46010144]
[1748508422726,0.29068077,688.04,685.94,0.46010144]
[1748508423325,0.29068077,688.04,685.95,0.46010144]
[1748508423534,0.29068077,688.04,685.98,0.46010144]
[1748508423727,0.29068077,688.04,686.02,0.46010144]
[1748508424133,0.29068077,688.04,686.03,0.46010144]
[1748508424527,0.29068077,688.04,686.06,0.46010144]
[1748508424932,0.29068077,688.04,686.04,0.418]
[1748508425332,0.29068077,688.04,686.09,0.46010144]
[1748508425533,0.29068077,688.04,686.1,0.46010144]
[1748508425734,0.29068077,688.04,686.15,0.46010144]
[1748508425934,0.29068077,688.04,686.16,0.46010144]
[1748508426435,0.29068077,688.04,686.04,0.418]
[1748508426436,0.29068077,688.04,686.11,0.46010144]
[1748508426650,0.29068077,688.04,686.05,0.46010144]
[1748508426934,0.29068077,688.04,686.04,0.87810144]
[1748508427335,0.29068077,688.04,686.06,0.46010144]
[1748508428136,0.29068077,688.04,686.07,0.46010144]
[1748508428735,0.29068077,688.04,686.08,0.46010144]
[1748508429034,0.29068077,688.04,686.07,0.46010144]
[1748508429432,0.29068077,688.04,686.08,0.46010144]
[1748508429735,0.29068077,688.04,686.04,0.418]
[1748508430133,0.29068077,688.04,686.04,0.87810144]
[1748508430334,0.29068077,688.04,686.07,0.46010144]
[1748508430531,0.29068077,688.04,686.09,0.46010144]
[1748508431038,0.25327695,687.56,686.09,0.46010144]
[1748508431234,0.29089216,687.54,686.09,0.46010144]
[1748508431440,0.29089216,687.54,686.1,0.46010144]
[1748508432437,0.29089216,687.54,686.08,0.46010144]
[1748508432634,0.29089216,687.54,686.07,0.46010144]
[1748508432833,0.29089216,687.54,686.04,0.87810144]
[1748508433440,0.29089216,687.54,686.04,0.418]
[1748508433638,0.29089216,687.54,686.04,0.87810144]
[1748508433835,0.29089216,687.54,686.04,0.418]
[1748508435138,0.29089216,687.54,686.08,0.46010144]
[1748508435536,0.29089216,687.54,686.04,0.418]
[1748508435537,0.29089216,687.54,686.07,0.46010144]
[1748508435937,0.29089216,687.54,686.08,0.46010144]
[1748508436436,0.29089216,687.54,686.04,0.418]
[1748508441044,0.29089216,687.54,686.04,0.87810144]
[1748508442345,0.29089216,687.54,686.05,0.46010144]
[1748508442649,0.29089216,687.54,686.09,0.46010144]
[1748508443546,0.29089216,687.54,686.08,0.46010144]
[1748508444246,0.29089216,687.54,686.1,0.46010144]
[1748508445048,0.29089216,687.54,686.12,0.46010144]
[1748508445547,0.29089216,687.54,686.14,0.46010144]
[1748508446348,0.29089216,687.54,686.04,0.418]
[1748508446349,0.29089216,687.54,686.38,0.46010144]
[1748508446750,0.29089216,687.54,686.24,0.46010144]
[1748508447052,0.29089216,687.54,686.21,0.46010144]
[1748508447449,0.29089216,687.54,686.04,0.418]
[1748508452047,0.29089216,687.54,686.27,0.46010144]
[1748508452253,0.29089216,687.54,686.04,0.418]
[1748508452254,0.29089216,687.54,686.29,0.46010144]
[1748508452649,0.29089216,687.54,686.28,0.46010144]
[1748508453049,0.29089216,687.54,686.29,0.46010144]
[1748508453550,0.29089216,687.54,686.3,0.46010144]
[1748508453753,0.29089216,687.54,686.29,0.46010144]
[1748508453955,0.29089216,687.54,686.3,0.46010144]
[1748508454356,0.29089216,687.54,686.31,0.46010144]
[1748508455750,0.29089216,687.54,685.83,0.25331106]
[1748508455751,0.29089216,687.54,686.26,0.46010144]
[1748508455953,0.29089216,687.54,686.25,0.46010144]
[1748508456556,0.29089216,687.54,686.26,0.46010144]
[1748508456957,0.29089216,687.54,686.28,0.46010144]
[1748508457357,0.29089216,687.54,686.27,0.80710144]
[1748508457557,0.29089216,687.54,686.31,0.46010144]
[1748508458060,0.29089216,687.54,686.27,0.80710144]
[1748508458555,0.29089216,687.54,686.29,0.46010144]
[1748508459159,0.29089216,687.54,686.28,0.46010144]
[1748508459556,0.29089216,687.54,686.29,0.46010144]
[1748508459955,0.29089216,687.54,686.28,0.46010144]
[1748508460573,0.29089216,687.54,686.29,0.46010144]
[1748508460860,0.29089216,687.54,686.3,0.46010144]
[1748508461460,0.29089216,687.54,686.31,0.46010144]
[1748508461761,0.29089216,687.54,686.29,0.46010144]
[1748508462657,0.29089216,687.54,686.28,0.46010144]
[1748508462854,0.29089216,687.54,686.29,0.46010144]
[1748508463056,0.29089216,687.54,686.27,0.347]
[1748508467064,0.29089216,687.54,686.28,0.46010144]
[1748508467264,0.29089216,687.54,686.27,0.347]
[1748508493279,0.29089216,687.54,686.13,0.46010144]
[1748508493679,0.29089216,687.54,686.14,0.46010144]
[1748508495180,0.29089216,687.54,685.83,0.25331106]
[1748508495181,0.29089216,687.54,686.12,0.46010144]
[1748508495384,0.29089216,687.54,686.11,0.46010144]
[1748508495582,0.29089216,687.54,686.13,0.86410144]
[1748508495888,0.29089216,687.54,686.14,0.46010144]
[1748508496481,0.29089216,687.54,686.13,0.404]
[1748508496482,0.29089216,687.54,686.2,0.46010144]
[1748508498584,0.29089216,687.54,686.26,0.46010144]
[1748508498901,0.29089216,687.54,686.25,0.46010144]
[1748508499983,0.29089216,687.54,686.32,0.46010144]
[1748508500486,0.29089216,687.54,686.33,0.46010144]
[1748508501290,0.29089216,687.54,686.35,0.46010144]
[1748508501989,0.29089216,687.54,686.41,0.46010144]
[1748508502688,0.29089216,687.54,686.42,0.46010144]
[1748508502889,0.29089216,687.54,686.33,0.46010144]
[1748508503083,0.29089216,687.54,686.37,0.46010144]
[1748508504186,0.29089216,687.54,686.22,0.46010144]
[1748508504785,0.29089216,687.54,686.2,0.46010144]
[1748508506089,0.29089216,687.54,686.21,0.46010144]
[1748508506691,0.29089216,687.54,686.18,0.46010144]
[1748508508701,0.29089216,687.54,686.19,0.46010144]
[1748508508993,0.29089216,687.54,686.2,0.46010144]
[1748508509398,0.29089216,687.54,686.21,0.46010144]
[1748508509697,0.29089216,687.54,686.2,0.46010144]
[1748508509895,0.29089216,687.54,686.42,0.46010144]
[1748508510297,0.29089216,687.54,686.13,0.404]
[1748508510298,0.29089216,687.54,686.41,0.46010144]
[1748508510589,0.29089216,687.54,686.13,0.404]
[1748508510590,0.29089216,687.54,686.43,0.46010144]
[1748508510904,0.29089216,687.54,686.39,0.46010144]
[1748508511313,0.29089216,687.54,686.49,0.46010144]
[1748508511497,0.29089216,687.54,686.47,0.46010144]
[1748508511697,0.29089216,687.54,686.46,0.46010144]
[1748508511993,0.29089216,687.54,686.39,0.46010144]
[1748508512192,0.29089216,687.54,686.41,0.46010144]
[1748508512599,0.29089216,687.54,686.39,0.46010144]
[1748508513498,0.29089216,687.54,686.37,0.46010144]
[1748508513698,0.29089216,687.54,686.38,0.46010144]
[1748508513896,0.29089216,687.54,686.41,0.46010144]
[1748508514595,0.29089216,687.54,686.39,0.46010144]
[1748508516502,0.29089216,687.54,686.38,0.46010144]
[1748508517003,0.29089216,687.54,686.37,0.46010144]
[1748508517998,0.29089216,687.54,686.4,0.46010144]
[1748508518603,0.29089216,687.54,686.39,0.46010144]
[1748508519005,0.29089216,687.54,686.38,0.46010144]
[1748508519705,0.29089216,687.54,686.35,0.46010144]
[1748508520006,0.29089216,687.54,686.32,0.46010144]
[1748508520206,0.29089216,687.54,686.33,0.46010144]
[1748508520705,0.29089216,687.54,686.36,0.46010144]
[1748508520905,0.29089216,687.54,686.35,0.46010144]
[1748508521498,0.29089216,687.54,686.13,0.404]
[1748508521499,0.29089216,687.54,686.34,0.46010144]
[1748508521904,0.29089216,687.54,686.32,0.46010144]
[1748508522098,0.29089216,687.54,686.31,0.46010144]
[1748508524406,0.29089216,687.54,686.32,0.46010144]
[1748508526812,0.29089216,687.54,686.21,0.46010144]
[1748508528211,0.29089216,687.54,686.2,0.46010144]